bitfinex/quotes_SOLUSD_20241125
["timestamp","ask_amount","ask_price","bid_price","bid_amount"]
[1732577154898,30.0,237.44,237.43,12.8457966]
[1732577155219,30.0,237.44,237.41,12.8457966]
[1732577155815,30.0,237.44,237.43,12.8457966]
[1732577156393,30.0,237.44,237.41,12.8457966]
[1732577156697,24.2665727,237.47,237.41,12.8457966]
[1732577158987,24.2665727,237.47,237.37,15.4786]
[1732577158988,23.776884,237.45,237.39,12.8457966]
[1732577159187,23.776884,237.45,237.38,4.2125]
[1732577160414,53.776884,237.43,237.37,12.8457966]
[1732577161009,53.776884,237.43,237.35,12.8457966]
[1732577161407,53.776884,237.43,237.38,12.8457966]
[1732577161639,30.0,237.43,237.38,12.8457966]
[1732577161923,30.0,237.43,237.36,12.8457966]
[1732577162288,30.0,237.43,237.4,12.8457966]
[1732577162486,30.0,237.43,237.38,17.0582966]
[1732577163204,30.0,237.43,237.38,4.2125]
[1732577163795,30.0,237.43,237.36,17.0585966]
[1732577163991,23.776884,237.42,237.34,17.0589966]
[1732577164195,36.6226806,237.42,237.34,12.8457966]
[1732577164506,26.725584,237.39,237.3,12.8457966]
[1732577164709,23.776884,237.39,237.3,12.8457966]
[1732577165109,23.776884,237.39,237.32,12.8457966]
[1732577165294,30.0,237.37,237.32,12.8457966]
[1732577165685,30.0,237.37,237.36,12.8457966]
[1732577166897,23.776884,237.43,237.36,12.8457966]
[1732577167396,23.776884,237.43,237.34,0.12549]
[1732577167397,12.8457966,237.4,237.32,12.8457966]
[1732577167601,23.776884,237.39,237.32,12.8457966]
[1732577168008,12.8457966,237.33,237.17,4.2163]
[1732577168210,23.776884,237.22,237.14,12.8457966]
[1732577168393,12.8457966,237.21,237.12,12.8457966]
[1732577168598,12.8457966,237.19,237.1,12.8457966]
[1732577169154,20.0,237.29,237.14,12.8457966]
[1732577169316,23.776884,237.22,237.14,12.8457966]
[1732577170098,23.776884,237.2,237.12,12.8457966]
[1732577170427,23.776884,237.2,237.11,4.2173]
[1732577170723,12.8457966,237.19,237.12,12.8457966]
[1732577170931,12.8457966,237.23,237.14,12.8457966]
[1732577171094,23.776884,237.22,237.14,12.8457966]
[1732577171291,12.8457966,237.16,236.98,4.2197]
[1732577171495,12.8457966,237.1,237.01,12.8457966]
[1732577171699,23.776884,237.17,237.05,12.8457966]
[1732577171899,12.8457966,237.14,237.05,12.8457966]
[1732577172219,23.776884,237.11,236.98,4.2197]
[1732577172432,30.0,237.08,237.03,12.8457966]
[1732577172792,30.0,237.08,237.06,20.0]
[1732577173015,30.0,237.08,237.03,12.8457966]
[1732577173213,30.0,237.08,236.99,12.8457966]
[1732577173513,42.8457966,237.08,237.0,0.12549]
[1732577173728,30.0,237.08,237.05,12.8457966]
[1732577173933,30.0,237.08,237.07,12.8457966]
[1732577174442,30.0,237.08,237.0,12.8457966]
[1732577174443,30.0,237.08,237.06,20.5156795]
[1732577174829,30.0,237.08,237.07,0.25098]
[1732577175031,20.5156795,237.19,237.07,0.25098]
[1732577175230,20.5156795,237.19,237.1,20.5156795]
[1732577175430,30.0,237.11,237.1,24.8587695]
[1732577175629,20.5156795,237.21,237.11,0.12549]
[1732577175824,20.5156795,237.21,237.13,40.5156795]
[1732577176041,20.5156795,237.21,237.11,20.5156795]
[1732577176245,20.5156795,237.17,237.09,20.5156795]
[1732577176425,30.0,237.13,237.08,20.0]
[1732577176626,50.5156795,237.13,237.05,20.5156795]
[1732577176927,50.5156795,237.13,237.05,24.7340795]
[1732577177342,30.0,237.13,237.09,20.5156795]
[1732577177644,30.0,237.13,237.11,20.6411695]
[1732577178139,30.0,237.13,237.1,4.2176]
[1732577178637,30.0,237.13,237.12,20.5156795]
[1732577178940,30.0,237.13,237.12,20.6411695]
[1732577180235,30.0,237.13,237.12,24.8583695]
[1732577180535,30.0,237.13,237.12,20.0]
[1732577180920,30.0,237.13,237.06,10.5457]
[1732577180921,30.0,237.13,237.06,20.5156795]
[1732577181223,30.0,237.13,237.08,20.5156795]
[1732577181826,30.0,237.13,237.07,0.12549]
[1732577182240,30.0,237.13,237.09,20.0]
[1732577183232,30.0,237.13,237.12,20.5156795]
[1732577183833,30.0,237.13,237.08,20.5156795]
[1732577184037,30.0,237.13,237.06,20.5156795]
[1732577184225,30.0,237.13,237.09,20.5156795]
[1732577184537,30.0,237.13,237.09,24.7333795]
[1732577184742,30.0,237.13,237.11,20.5156795]
[1732577184938,30.0,237.13,237.12,0.12549]
[1732577185526,30.0,237.13,237.12,0.25098]
[1732577185728,25.34029802,237.13,237.12,30.7666595]
[1732577185928,20.5156795,237.3,237.18,0.25098]
[1732577186136,20.5156795,237.3,237.23,20.5156795]
[1732577186738,20.5156795,237.3,237.23,24.7308795]
[1732577187041,23.776884,237.29,237.21,20.5156795]
[1732577187251,23.776884,237.29,237.21,24.7311795]
[1732577188354,20.5156795,237.28,237.21,24.7311795]
[1732577188541,20.5156795,237.28,237.21,4.2155]
[1732577189124,20.5156795,237.26,237.19,4.2158]
[1732577189354,23.776884,237.27,237.19,4.2158]
[1732577189355,20.5156795,237.24,237.19,4.2158]
[1732577190128,23.776884,237.27,237.15,24.2166]
[1732577190129,20.5156795,237.22,237.15,24.2166]
[1732577190461,20.5156795,237.24,237.15,24.7322795]
[1732577192257,20.5156795,237.26,237.17,20.5156795]
[1732577192634,23.776884,237.25,237.17,20.5156795]
[1732577192835,23.776884,237.25,237.18,4.2162]
[1732577193553,20.5156795,237.28,237.19,20.5156795]
[1732577193750,23.776884,237.27,237.19,20.5156795]
[1732577194833,18.2214,237.32,237.18,4.2162]
[1732577194834,20.5156795,237.3,237.22,0.12549]
[1732577195060,20.5156795,237.32,237.23,24.7309795]
[1732577196061,20.5156795,237.3,237.24,20.0]
[1732577196244,20.5156795,237.3,237.23,4.2153]
[1732577196441,2.9494,237.33,237.22,20.0]
[1732577196442,12.80598987,237.27,237.22,20.0]
[1732577197554,12.80598987,237.27,237.22,24.2154]
[1732577199189,12.80598987,237.25,237.17,12.80598987]
[1732577199355,12.80598987,237.23,237.18,20.0]
[1732577199732,12.80598987,237.23,237.15,12.80598987]
[1732577200338,12.80598987,237.25,237.15,12.80598987]
[1732577200533,23.776884,237.24,237.16,4.2165]
[1732577201557,23.776884,237.24,237.17,12.80598987]
[1732577202434,23.776884,237.24,237.18,4.2162]
[1732577203661,12.80598987,237.25,237.18,4.2162]
[1732577204031,23.776884,237.24,237.18,4.2162]
[1732577204237,12.80598987,237.23,237.16,4.2164]
[1732577207246,23.776884,237.22,237.13,29.45378987]
[1732577207453,23.776884,237.22,237.14,24.2167]
[1732577207454,12.80598987,237.19,237.14,24.2167]
[1732577208357,12.80598987,237.17,237.1,4.2176]
[1732577208565,12.80598987,237.15,237.1,4.2176]
[1732577209142,12.80598987,237.15,237.07,12.80598987]
[1732577209464,12.80598987,237.13,237.08,4.2178]
[1732577209645,12.80598987,237.11,237.02,16.4371]
[1732577209857,23.776884,237.1,237.02,16.4371]
[1732577210161,23.776884,237.1,237.02,4.2188]
[1732577210361,12.80598987,237.09,237.02,4.2188]
[1732577210979,23.776884,237.1,237.02,4.2188]
[1732577211178,23.776884,237.1,237.03,12.80598987]
[1732577211881,12.80598987,237.13,237.05,12.80598987]
[1732577212054,23.776884,237.12,237.06,4.2183]
[1732577213358,12.80598987,237.09,237.04,24.2186]
[1732577213557,30.0,237.08,237.04,24.2186]
[1732577216071,23.776884,237.1,237.04,24.2186]
[1732577217350,23.776884,237.1,237.04,4.2186]
[1732577217560,12.80598987,237.09,237.04,4.2186]
[1732577217776,12.80598987,237.05,236.93,1.77312742]
[1732577217983,12.80598987,237.0,236.93,4.2206]
[1732577218364,12.80598987,237.02,236.94,12.93147987]
[1732577218761,12.80598987,237.0,236.93,4.2206]
[1732577218962,30.0,236.99,236.93,4.2206]
[1732577219187,12.80598987,236.98,236.91,16.4371]
[1732577219479,12.80598987,236.98,236.91,33.46398987]
[1732577219660,23.776884,236.97,236.89,17.02718987]
[1732577220266,20.5471372,236.96,236.87,4.2216]
[1732577220461,23.776884,236.95,236.87,24.7687372]
[1732577220665,30.0,236.97,236.91,20.5471372]
[1732577220862,30.0,236.97,236.87,4.2216]
[1732577220863,30.0,236.97,236.93,20.5471372]
[1732577221069,30.0,236.97,236.91,20.5471372]
[1732577221281,23.776884,236.96,236.89,24.7684372]
[1732577221977,44.3240212,236.96,236.89,4.2213]
[1732577222280,20.5471372,236.94,236.85,36.8900372]
[1732577222486,32.9539,236.97,236.85,36.8900372]
[1732577222487,30.0,236.93,236.87,20.5471372]
[1732577222663,30.0,236.93,236.89,20.5471372]
[1732577222864,30.0,236.93,236.91,20.5471372]
[1732577223260,30.0,236.93,236.92,4.2208]
[1732577223464,20.5471372,237.0,236.92,4.2208]
[1732577225165,20.5471372,236.98,236.92,4.2208]
[1732577225469,20.5471372,236.98,236.9,4.2211]
[1732577225895,20.5471372,236.98,236.91,20.5471372]
[1732577226585,20.5471372,236.98,236.92,4.2208]
[1732577227077,20.5471372,236.98,236.89,40.5471372]
[1732577227078,20.5471372,236.96,236.89,24.2211]
[1732577227270,20.5471372,236.94,236.87,4.2216]
[1732577227787,20.5471372,236.96,236.89,20.5471372]
[1732577228004,20.5471372,236.98,236.91,20.5471372]
[1732577228286,30.0,236.92,236.91,20.5471372]
[1732577229221,30.0,236.92,236.91,24.7681372]
[1732577229388,20.5471372,236.96,236.91,4.221]
[1732577229979,20.5471372,236.98,236.91,4.221]
[1732577233703,20.5471372,237.0,236.93,20.5471372]
[1732577233884,23.776884,237.01,236.93,20.5471372]
[1732577234193,20.5471372,237.02,236.93,20.5471372]
[1732577234491,23.776884,237.03,236.96,20.5471372]
[1732577234691,30.0,236.97,236.96,20.5471372]
[1732577235276,30.0,236.97,236.94,40.5471372]
[1732577235477,30.0,236.97,236.95,4.2202]
[1732577237013,30.0,236.97,236.96,20.6726272]
[1732577237294,30.0,236.97,236.96,36.8514172]
[1732577237676,23.96234618,236.97,236.96,74.8484012]
[1732577237871,20.5471372,237.13,237.01,0.25098]
[1732577238108,20.5471372,237.13,237.05,20.5471372]
[1732577239284,20.5471372,237.13,237.06,4.2183]
[1732577241309,15.9045,237.15,237.07,20.6726272]
[1732577241310,20.5471372,237.15,237.07,20.6726272]
[1732577241509,30.0,237.08,237.07,20.6726272]
[1732577241989,20.5471372,237.15,237.07,20.6726272]
[1732577242386,12.82002529,237.16,237.08,12.82002529]
[1732577242605,12.82002529,237.12,237.06,4.2183]
[1732577242780,12.82002529,237.14,237.07,20.12549]
[1732577242986,18.8556,237.2,237.07,20.12549]
[1732577242987,12.82002529,237.16,237.08,12.82002529]
[1732577243301,12.82002529,237.14,237.07,20.0]
[1732577243601,12.82002529,237.14,237.08,4.2179]
[1732577244512,12.82002529,237.14,237.06,12.82002529]
[1732577244513,12.82002529,237.16,237.1,4.2176]
[1732577244685,30.0,237.11,237.1,4.2176]
[1732577245387,30.0,237.11,237.1,4.34309]
[1732577246089,12.82002529,237.18,237.1,4.34309]
[1732577246395,12.82002529,237.18,237.11,0.12549]
[1732577246598,20.0,237.29,237.11,0.12549]
[1732577246599,30.0,237.12,237.11,20.25098]
[1732577246799,30.0,237.12,237.11,20.12549]
[1732577246999,2.9505,237.25,237.12,0.12549]
[1732577247311,2.9505,237.25,237.13,20.0]
[1732577247488,30.0,237.14,237.13,20.12549]
[1732577248209,30.0,237.14,237.13,24.34249]
[1732577248710,12.82002529,237.22,237.14,0.12549]
[1732577248920,30.0,237.15,237.14,0.12549]
[1732577249094,30.0,237.15,237.14,12.94551529]
[1732577249804,12.82002529,237.22,237.14,12.94551529]
[1732577250410,12.82002529,237.22,237.15,4.2167]
[1732577251412,42.82002529,237.16,237.08,19.01482529]
[1732577251600,42.82002529,237.16,237.09,0.12549]
[1732577251805,42.82002529,237.16,237.09,0.00833021]
[1732577252315,42.82002529,237.16,237.08,19.01482529]
[1732577252606,42.82002529,237.16,237.09,4.2178]
[1732577252807,12.82002529,237.14,237.07,4.2179]
[1732577253015,12.82002529,237.12,237.05,4.2184]
[1732577253222,23.776884,237.11,237.05,4.2184]
[1732577254016,30.0,237.1,237.05,4.2184]
[1732577254210,30.0,237.1,237.03,1.91334267]
[1732577254211,30.0,237.1,237.06,12.82002529]
[1732577254405,30.0,237.1,237.04,12.82002529]
[1732577254590,30.0,237.1,237.06,12.82002529]
[1732577255191,30.0,237.1,237.08,12.82002529]
[1732577255398,30.0,237.1,237.04,12.82002529]
[1732577255926,30.0,237.1,237.06,12.82002529]
[1732577256102,30.0,237.1,237.07,4.2181]
[1732577256490,30.0,237.1,237.08,12.94551529]
[1732577257819,30.0,237.1,237.08,12.82002529]
[1732577258117,30.0,237.1,237.09,4.2178]
[1732577258503,30.0,237.1,237.08,4.2179]
[1732577259795,30.0,237.1,237.06,20.0]
[1732577260316,30.0,237.1,237.03,12.46044267]
[1732577260317,42.82002529,237.1,237.03,1.91334267]
[1732577260521,23.776884,237.09,237.03,1.91334267]
[1732577260721,30.0,237.06,237.03,1.91334267]
[1732577260898,42.82002529,237.06,237.03,1.91334267]
[1732577261216,12.82002529,237.04,237.03,1.91334267]
[1732577261633,30.0,237.04,237.03,1.91334267]
[1732577268202,53.776884,237.04,237.03,1.91334267]
[1732577269219,30.0,237.04,237.03,1.91334267]
[1732577270498,30.0,237.04,237.03,6.13214267]
[1732577271123,30.0,237.04,237.03,4.2188]
[1732577274301,30.0,237.04,237.03,4.46978]
[1732577274528,30.0,237.04,237.03,24.46978]
[1732577274825,30.0,237.04,237.03,34.46978]
[1732577275897,30.0,237.04,237.03,24.46978]
[1732577277024,23.776884,237.19,237.06,0.25098]
[1732577277230,30.0,237.07,237.06,20.25098]
[1732577278223,30.0,237.07,237.06,24.46928]
[1732577279131,30.0,237.07,237.06,24.2183]
[1732577279632,30.0,237.07,237.06,4.2183]
[1732577280000,30.0,237.07,237.02,16.0299]
[1732577280212,30.0,237.07,237.03,4.2188]
[1732577281320,30.0,237.07,237.05,20.0]
[1732577281637,30.0,237.07,237.06,20.0]
[1732577282524,30.0,237.07,237.06,24.2183]
[1732577283131,30.0,237.07,237.06,4.2183]
[1732577283313,30.0,237.07,237.03,1.51541619]
[1732577283513,30.0,237.07,237.04,4.2185]
[1732577289633,30.0,237.07,237.06,20.0]
[1732577290720,30.0,237.07,237.06,20.25098]
[1732577292832,30.0,237.07,237.06,24.46928]
[1732577293134,30.0,237.07,237.04,4.2186]
[1732577293517,30.0,237.07,237.03,1.51541619]
[1732577294340,32.9527,237.07,237.03,1.51541619]
[1732577294519,23.776884,237.06,237.03,1.51541619]
[1732577294717,56.729884,237.04,237.03,1.51541619]
[1732577294938,63.071484,237.04,237.03,1.51541619]
[1732577295243,63.071484,237.04,236.9,4.2211]
[1732577295417,23.776884,237.03,236.9,4.2211]
[1732577295623,30.0,237.02,236.9,4.2211]
[1732577295818,23.776884,237.01,236.9,4.2211]
[1732577296320,23.776884,237.01,236.9,24.2211]
[1732577296520,23.776884,237.03,236.9,24.2211]
[1732577298939,26.730084,237.03,236.9,24.2211]
[1732577299642,30.0,236.97,236.9,24.2211]
[1732577300216,30.0,236.97,236.92,20.0]
[1732577300415,30.0,236.97,236.93,20.0]
[1732577300633,30.0,236.97,236.94,0.12549]
[1732577300816,30.0,236.97,236.95,4.2202]
[1732577301018,30.0,236.97,236.96,20.0]
[1732577301239,30.0,236.97,236.96,20.25098]
[1732577302627,30.0,236.97,236.96,20.0]
[1732577305542,30.0,236.97,236.95,4.2202]
[1732577305934,30.0,236.97,236.91,20.0]
[1732577307019,30.0,236.97,236.92,4.2208]
[1732577310331,39.377884,236.96,236.87,1.40248345]
[1732577310656,30.0,236.94,236.91,4.221]
[1732577310863,30.0,236.94,236.88,4.2215]
[1732577313963,23.776884,236.93,236.88,4.2215]
[1732577314126,30.0,236.91,236.88,4.2215]
[1732577315047,30.0,236.91,236.87,1.40248345]
[1732577315362,30.0,236.91,236.87,5.62418345]
[1732577316148,23.776884,236.9,236.87,1.40248345]
[1732577316456,30.0,236.88,236.85,4.2219]
[1732577317764,30.0,236.88,236.84,4.2222]
[1732577319253,30.0,236.88,236.76,26.96963737]
[1732577319254,39.377884,236.86,236.76,5.61233737]
[1732577319457,30.0,236.84,236.76,5.61233737]
[1732577320060,30.0,236.84,236.76,16.17153737]
[1732577320636,30.0,236.84,236.79,20.0]
[1732577321556,30.0,236.84,236.78,4.2231]
[1732577323840,23.776884,236.83,236.78,4.2231]
[1732577324043,30.0,236.81,236.76,5.61223737]
[1732577324262,30.0,236.81,236.76,1.38873737]
[1732577325563,30.0,236.81,236.76,5.61233737]
[1732577331265,23.776884,236.8,236.76,1.38873737]
[1732577331572,30.0,236.77,236.76,1.38873737]
[1732577331865,45.2487,236.77,236.76,1.38873737]
[1732577332067,6.2339,236.76,236.65,0.4896887]
[1732577332271,23.776884,236.73,236.65,0.4896887]
[1732577332453,23.776884,236.7,236.65,0.4896887]
[1732577333371,23.776884,236.66,236.65,0.4896887]
[1732577333669,50.010784,236.66,236.65,0.4896887]
[1732577333874,23.776884,236.62,236.47,4.2288]
[1732577334469,30.0,236.6,236.47,14.8009]
[1732577334645,30.0,236.6,236.48,0.12549]
[1732577334845,30.0,236.6,236.5,0.25098]
[1732577335042,30.0,236.6,236.51,0.25098]
[1732577335269,30.0,236.6,236.54,0.12549]
[1732577335673,30.0,236.6,236.54,0.25098]
[1732577335976,30.0,236.6,236.54,20.25098]
[1732577336340,29.8505811,236.6,236.56,0.12549]
[1732577336860,29.8505811,236.6,236.55,14.7959]
[1732577337067,29.8505811,236.6,236.55,4.2274]
[1732577338360,29.8505811,236.6,236.47,1.12351288]
[1732577338361,29.8505811,236.6,236.51,4.2281]
[1732577339348,29.8505811,236.6,236.51,14.7984]
[1732577340570,29.8505811,236.6,236.5,20.0]
[1732577340780,25.9324811,236.6,236.58,20.0]
[1732577340958,22.14319219,236.6,236.55,6.5878]
[1732577341168,22.14319219,236.6,236.45,1.73847591]
[1732577341471,22.14319219,236.6,236.51,0.12549]
[1732577341675,22.14319219,236.6,236.51,0.25098]
[1732577341873,22.14319219,236.6,236.54,20.0]
[1732577342069,22.14319219,236.6,236.55,0.25098]
[1732577342257,22.14319219,236.6,236.55,0.12549]
[1732577342766,22.14319219,236.6,236.59,0.12549]
[1732577343461,22.14319219,236.6,236.59,20.12549]
[1732577343647,30.0,236.61,236.59,20.12549]
[1732577344067,30.0,236.61,236.6,0.12549]
[1732577344263,30.0,236.61,236.59,20.0]
[1732577344774,30.0,236.61,236.6,4.35199]
[1732577345169,24.8314,236.74,236.6,4.2265]
[1732577345371,23.776884,236.73,236.6,4.2265]
[1732577346176,30.0,236.61,236.6,4.2265]
[1732577346674,30.0,236.61,236.56,10.5681]
[1732577346853,30.0,236.61,236.59,20.0]
[1732577347049,30.0,236.6,236.59,20.0]
[1732577348587,30.0,236.6,236.59,24.2267]
[1732577349175,30.0,236.6,236.59,24.35219]
[1732577349366,21.8746,236.74,236.62,20.0]
[1732577350058,24.8314,236.74,236.62,20.0]
[1732577350452,21.8746,236.74,236.63,4.226]
[1732577350682,21.8746,236.74,236.64,0.12549]
[1732577350884,21.8746,236.74,236.64,0.25098]
[1732577352465,15.2465,236.74,236.65,4.2256]
[1732577352765,15.2465,236.74,236.68,20.0]
[1732577353077,30.0,236.69,236.68,20.25098]
[1732577353276,6.6281,236.79,236.69,0.12549]
[1732577354060,15.2465,236.8,236.69,0.25098]
[1732577354683,15.2465,236.8,236.7,14.7865]
[1732577356661,16.2717,236.85,236.73,0.12549]
[1732577357587,16.2717,236.85,236.73,0.25098]
[1732577357886,6.2234,236.86,236.75,20.0]
[1732577358801,20.0,236.87,236.76,4.2236]
[1732577359284,23.776884,236.86,236.76,4.2236]
[1732577359671,33.776884,236.86,236.64,24.7903]
[1732577359869,23.776884,236.86,236.68,0.12549]
[1732577360364,23.776884,236.86,236.67,20.0]
[1732577360995,23.776884,236.84,236.71,20.0]
[1732577361169,22.9553,236.87,236.72,0.12549]
[1732577361377,23.776884,236.86,236.72,0.12549]
[1732577361891,23.776884,236.86,236.72,0.25098]
[1732577362464,16.2717,236.9,236.72,0.25098]
[1732577362465,20.0,236.85,236.73,4.2242]
[1732577362668,23.776884,236.84,236.73,4.2242]
[1732577364797,16.2717,236.9,236.73,0.12549]
[1732577364798,20.0,236.87,236.73,0.12549]
[1732577364969,16.2717,236.9,236.72,10.5606]
[1732577364970,23.776884,236.86,236.76,0.12549]
[1732577365170,19.2265,236.9,236.76,0.12549]
[1732577366079,20.0,236.86,236.72,4.2244]
[1732577366292,23.776884,236.85,236.72,4.2244]
[1732577366894,23.776884,236.83,236.72,4.2244]
[1732577367796,20.0,236.86,236.72,4.2244]
[1732577367797,23.776884,236.86,236.73,0.25098]
[1732577367983,23.776884,236.86,236.72,14.7854]
[1732577368871,2.9554,236.85,236.72,14.7854]
[1732577369076,23.776884,236.84,236.72,14.7854]
[1732577369999,26.732184,236.86,236.72,14.7854]
[1732577370200,43.776884,236.82,236.69,4.2249]
[1732577370495,23.776884,236.8,236.69,4.2249]
[1732577370694,20.0,236.77,236.64,4.2258]
[1732577371002,23.776884,236.76,236.63,26.3126]
[1732577372478,23.776884,236.76,236.64,0.12549]
[1732577373882,23.776884,236.76,236.65,4.2256]
[1732577374084,23.776884,236.77,236.66,20.0]
[1732577374700,23.776884,236.79,236.67,4.2252]
[1732577375781,26.733184,236.79,236.67,4.2252]
[1732577377805,23.776884,236.8,236.68,0.12549]
[1732577378017,23.776884,236.8,236.67,14.7884]
[1732577378190,23.776884,236.8,236.67,24.2252]
[1732577379399,23.776884,236.78,236.67,24.2252]
[1732577379601,23.776884,236.78,236.67,4.2252]
[1732577380703,2.9564,236.78,236.67,4.2252]
[1732577381080,23.776884,236.77,236.67,4.2252]
[1732577381894,23.776884,236.75,236.64,4.2258]
[1732577383101,26.733584,236.75,236.64,4.2258]
[1732577383691,2.956,236.8,236.64,14.7903]
[1732577384006,2.956,236.8,236.67,20.0]
[1732577385080,2.956,236.8,236.68,4.2251]
[1732577385509,23.776884,236.79,236.68,4.2251]
[1732577386309,26.733084,236.79,236.68,4.2251]
[1732577388693,26.733084,236.79,236.64,4.2258]
[1732577389411,23.776884,236.75,236.64,4.2258]
[1732577389790,26.733584,236.75,236.64,4.2258]
[1732577390695,20.0,236.72,236.57,23.0475]
[1732577390891,23.776884,236.71,236.58,4.2268]
[1732577391699,23.776884,236.71,236.58,14.794]
[1732577393725,6.1744,236.76,236.61,20.0]
[1732577393726,2.9567,236.75,236.61,20.0]
[1732577394022,23.776884,236.74,236.63,20.0]
[1732577394718,26.733684,236.74,236.64,4.2258]
[1732577395310,2.9568,236.74,236.64,4.2258]
[1732577395512,22.9566,236.76,236.64,4.2258]
[1732577395820,2.9566,236.76,236.64,4.2258]
[1732577396016,22.9564,236.78,236.64,14.7903]
[1732577396712,22.9564,236.78,236.64,10.5645]
[1732577397718,23.776884,236.77,236.64,10.5645]
[1732577398088,23.506924,236.77,236.65,0.12549]
[1732577398293,26.463324,236.77,236.65,0.12549]
[1732577398497,20.0,236.74,236.61,4.2263]
[1732577399423,30.0,236.74,236.61,4.2263]
[1732577399891,20.0,236.72,236.61,4.2263]
[1732577400309,26.734084,236.71,236.58,4.35229]
[1732577400622,2.9563,236.78,236.61,20.0]
[1732577400802,2.9563,236.78,236.62,0.12549]
[1732577401120,2.9563,236.78,236.62,0.25098]
[1732577401299,12.9563,236.78,236.62,0.12549]
[1732577401703,2.9563,236.78,236.63,4.226]
[1732577401907,23.776884,236.77,236.63,4.226]
[1732577403222,23.776884,236.77,236.64,15.53499]
[1732577403525,23.776884,236.77,236.66,0.12549]
[1732577404022,26.733384,236.77,236.65,6.4462]
[1732577405405,23.776884,236.73,236.65,6.4462]
[1732577405604,23.776884,236.73,236.65,10.6718]
[1732577406604,2.9567,236.75,236.65,10.6718]
[1732577406805,43.776884,236.75,236.65,10.6718]
[1732577407117,23.776884,236.74,236.65,10.6718]
[1732577407503,26.733184,236.78,236.65,10.6718]
[1732577407699,16.4161,236.81,236.65,10.6718]
[1732577407700,2.9561,236.8,236.66,0.25098]
[1732577407930,2.9559,236.82,236.66,0.25098]
[1732577408099,2.9559,236.82,236.69,0.12549]
[1732577408630,22.5437,236.87,236.69,0.12549]
[1732577408806,2.9553,236.86,236.7,4.2247]
[1732577409435,10.0,236.85,236.7,4.2247]
[1732577409921,33.776884,236.82,236.66,4.2254]
[1732577410334,23.776884,236.78,236.66,4.2254]
[1732577410701,2.9564,236.77,236.66,4.2254]
[1732577410908,23.776884,236.76,236.66,4.2254]
[1732577411420,22.9563,236.79,236.66,4.2254]
[1732577411610,23.776884,236.82,236.68,20.0]
[1732577411816,23.776884,236.82,236.67,0.12549]
[1732577412606,23.776884,236.8,236.68,4.2251]
[1732577413843,26.732684,236.82,236.68,4.2251]
[1732577414325,23.776884,236.78,236.68,4.2251]
[1732577414717,30.0,236.69,236.68,4.2251]
[1732577414935,30.0,236.69,236.68,24.47608]
[1732577415232,22.5438,236.87,236.68,24.47608]
[1732577415233,2.9554,236.86,236.69,0.12549]
[1732577415405,23.776884,236.85,236.72,0.12549]
[1732577415821,26.732184,236.86,236.73,4.2242]
[1732577416310,26.732184,236.86,236.74,21.8242]
[1732577416515,16.6589,236.92,236.75,0.12549]
[1732577416811,2.9549,236.9,236.75,0.12549]
[1732577417809,23.776884,236.87,236.76,4.2236]
[1732577418114,23.776884,236.88,236.76,4.2236]
[1732577418530,30.0,236.77,236.76,24.2236]
[1732577419938,20.0,236.89,236.77,20.12549]
[1732577420138,16.2271,236.98,236.77,20.12549]
[1732577420139,30.0,236.78,236.77,44.027864]
[1732577420937,2.9546,236.92,236.77,20.12549]
[1732577421115,10.341,236.92,236.76,4.2236]
[1732577421321,10.0,236.91,236.76,4.2236]
[1732577421524,23.776884,236.87,236.76,4.2236]
[1732577422048,20.0,236.88,236.77,0.12549]
[1732577422550,2.9545,236.93,236.77,0.12549]
[1732577422840,23.776884,236.92,236.79,0.12549]